fUST/lending_fUST_20250526
["ID","MTS","AMOUNT","RATE_DAILY","PERIOD"]
[362384313,1748242945739,-500.0,0.00014782,2]
[362384314,1748242945762,-500.0,0.00014782,2]
[362384315,1748242945784,-500.0,0.00014782,2]
[362384316,1748242945809,-500.0,0.00014782,2]
[362384317,1748242945836,-500.0,0.00014782,2]
[362384318,1748242945859,-500.0,0.00014782,2]
[362384319,1748242945881,-500.0,0.00014782,2]
[362384320,1748242945907,-500.0,0.00014782,2]
[362384321,1748242945930,-3725.4062216,0.00015741,2]
[362384322,1748242945952,-1287.53,0.00015915,2]
[362384323,1748242945976,-420.0,0.00016181,2]
[362384324,1748242946002,-1101.8143303,0.000163,2]
[362384325,1748242946029,-9.6094481,0.000163,2]
[362384326,1748242984466,190.97937404,0.00021918,30]
[362384327,1748242989765,263.36,0.00012621,2]
[362384328,1748242990214,526.72,0.00013768,2]
[362384329,1748243063211,248.99,0.00012513,2]
[362384330,1748243063649,497.99,0.0001365,2]
[362384331,1748243135707,235.41,0.00011938,2]
[362384332,1748243136109,34.94481543,0.00012506,2]
[362384333,1748243136134,435.87518457,0.00012506,2]
[362384334,1748243136517,706.23,0.00013075,2]
[362384335,1748243137475,941.64,0.00013643,2]
[362384336,1748243141860,-1122.0,0.00014212,2]
[362384337,1748243207388,192.61,0.00011941,2]
[362384338,1748243207827,385.22,0.00012509,2]
[362384339,1748243208328,577.83,0.00013078,2]
[362384340,1748243208747,770.44,0.00013646,2]
[362384341,1748243240100,36297.88593,0.00021917,30]
[362384342,1748243274375,-347.0,0.00014215,2]
[362384343,1748243278333,154.11,0.00011939,2]
[362384344,1748243278744,308.23,0.00012507,2]
[362384345,1748243279155,462.34,0.00013076,2]
[362384346,1748243279919,616.45,0.00013644,2]
[362384351,1748243345192,161.218586,0.0002148,30]
[362384352,1748243350065,259.14,0.00012507,2]
[362384353,1748243350454,388.72,0.00013076,2]
[362384354,1748243350854,518.29,0.00013644,2]
[362384356,1748243420635,216.74,0.00012515,2]
[362384357,1748243421609,325.11,0.00013084,2]
[362384358,1748243422047,433.48,0.00013653,2]
[362384413,1748243438280,-541.85,0.00014222,2]
[362384415,1748243438290,-650.22,0.0001479,2]
[362384417,1748243438300,-758.59,0.00015359,2]
[362384419,1748243438310,-316.84393531,0.00015759,2]
[362384420,1748243438320,-866.96,0.00015928,2]
[362384421,1748243438329,-975.33,0.00016497,2]
[362384422,1748243438339,-212.160984,0.00016935,2]
[362384423,1748243438350,-1083.7,0.00017066,2]
[362384425,1748243438360,-500.0,0.00017086,2]
[362384428,1748243438507,-500.0,0.00017086,2]
[362384429,1748243438519,-500.0,0.00017086,2]
[362384430,1748243438531,-189.46946149,0.00017086,2]
[362384431,1748243438541,-500.0,0.00017086,2]
[362384432,1748243438551,-500.0,0.00017086,2]
[362384433,1748243438562,-500.0,0.00017086,2]
[362384434,1748243438574,-500.0,0.00017086,2]
[362384436,1748243438584,-346.98162537,0.00017086,2]
[362384438,1748243438595,-500.0,0.00017086,2]
[362384439,1748243438605,-500.0,0.00017086,2]
[362384441,1748243438615,-500.0,0.00017086,2]
[362384442,1748243438626,-500.0,0.00017086,2]
[362384443,1748243438636,-500.0,0.00017086,2]
[362384444,1748243438648,-500.0,0.00017086,2]
[362384445,1748243438658,-500.0,0.00017086,2]
[362384446,1748243438667,-500.0,0.00017086,2]
[362384447,1748243438677,-500.0,0.00017086,2]
[362384448,1748243438687,-500.0,0.00017086,2]
[362384449,1748243438696,-500.0,0.00017086,2]
[362384450,1748243438706,-500.0,0.00017086,2]
[362384451,1748243438716,-500.0,0.00017086,2]
[362384452,1748243438727,-500.0,0.00017086,2]
[362384453,1748243438736,-500.0,0.00017086,2]
[362384454,1748243438746,-500.0,0.00017086,2]
[362384455,1748243438756,-500.0,0.00017086,2]
[362384456,1748243438766,-500.0,0.00017086,2]
[362384457,1748243438776,-500.0,0.00017086,2]
[362384458,1748243438785,-500.0,0.00017086,2]
[362384460,1748243438795,-500.0,0.00017086,2]
[362384461,1748243438804,-322.25918488,0.00017086,2]
[362384464,1748243438834,-171.74851535,0.00017086,2]
[362384466,1748243438845,-500.0,0.00017086,2]
[362384468,1748243438855,-500.0,0.00017086,2]
[362384470,1748243438865,-500.0,0.00017086,2]
[362384472,1748243438876,-500.0,0.00017086,2]
[362384473,1748243438886,-500.0,0.00017086,2]
[362384475,1748243438896,-144.33571763,0.00017086,2]
[362384529,1748243440851,-355.66428237,0.00017086,2]
[362384531,1748243440861,-500.0,0.00017086,2]
[362384534,1748243440871,-500.0,0.00017086,2]
[362384535,1748243440881,-500.0,0.00017086,2]
[362384537,1748243440891,-500.0,0.00017086,2]
[362384540,1748243440900,-500.0,0.00017086,2]
[362384542,1748243440909,-576.22726005,0.00017086,2]
[362384543,1748243440919,-500.0,0.00017086,2]
[362384546,1748243440928,-500.0,0.00017086,2]
[362384547,1748243440937,-500.0,0.00017086,2]
[362384549,1748243440947,-500.0,0.00017086,2]
[362384551,1748243440958,-500.0,0.00017086,2]
[362384553,1748243440968,-500.0,0.00017086,2]
[362384556,1748243440979,-450.43307823,0.00017086,2]
[362384558,1748243440989,-500.0,0.00017086,2]
[362384560,1748243440999,-500.0,0.00017086,2]
[362384562,1748243441008,-500.0,0.00017086,2]
[362384564,1748243441018,-500.0,0.00017086,2]
[362384566,1748243441027,-500.0,0.00017086,2]
[362384568,1748243441039,-500.0,0.00017086,2]
[362384570,1748243441049,-500.0,0.00017086,2]
[362384572,1748243441058,-500.0,0.00017086,2]
[362384574,1748243441068,-500.0,0.00017086,2]
[362384576,1748243441077,-500.0,0.00017086,2]
[362384578,1748243441086,-300.0,0.00017086,2]
[362384580,1748243441097,-300.0,0.00017086,2]
[362384582,1748243441107,-300.0,0.00017086,2]
[362384584,1748243441116,-7715.06874925,0.00017087,2]
[362384599,1748243441275,-1981.47266201,0.00017087,2]
[362384601,1748243441287,-500.0,0.00017088,2]
[362384603,1748243441300,-600.0,0.00017088,2]
[362384605,1748243441310,-347.48750105,0.00017088,2]
[362384606,1748243441320,-500.0,0.00017088,2]
[362384608,1748243441329,-500.0,0.00017088,2]
[362384610,1748243441339,-307.25159474,0.00017088,2]
[362384612,1748243441349,-500.0,0.00017088,2]
[362384614,1748243441360,-9981.48997811,0.00017089,2]
[362384615,1748243441369,-151.0,0.00017446,2]
[362384617,1748243441379,-151.0,0.00017446,2]
[362384619,1748243441388,-198.78066594,0.00017447,2]
[362384621,1748243441397,-198.0,0.00017447,2]
[362384623,1748243441406,-151.0,0.00017447,2]
[362384624,1748243441416,-198.55117016,0.00017447,2]
[362384626,1748243441426,-151.0,0.00017447,2]
[362384628,1748243441437,-198.0,0.00017447,2]
[362384630,1748243441447,-151.9289401,0.00017447,2]
[362384632,1748243441456,-152.72279231,0.00017447,2]
[362384634,1748243441466,-151.0,0.00017447,2]
[362384636,1748243441475,-151.0,0.00017447,2]
[362384637,1748243441485,-500.0,0.00017447,2]
[362384639,1748243441494,-151.26819811,0.00017447,2]
[362384641,1748243441504,-151.0,0.00017447,2]
[362384643,1748243441513,-500.0,0.00017447,2]
[362384645,1748243441522,-151.0,0.00017447,2]
[362384646,1748243441532,-152.71912524,0.00017447,2]
[362384648,1748243441541,-151.0,0.00017447,2]
[362384650,1748243441551,-198.66345026,0.00017447,2]
[362384652,1748243441560,-151.0,0.00017447,2]
[362384654,1748243441569,-151.0,0.00017448,2]
[362384655,1748243441578,-151.0,0.00017448,2]
[362384657,1748243441588,-151.0,0.00017448,2]
[362384659,1748243441599,-256.31868053,0.00017448,2]
[362384661,1748243441608,-151.0,0.00017448,2]
[362384663,1748243441618,-151.0,0.00017448,2]
[362384664,1748243441627,-151.0,0.00017448,2]
[362384666,1748243441636,-151.0,0.00017448,2]
[362384668,1748243441646,-163.443841,0.00017448,2]
[362384670,1748243441655,-151.0,0.00017449,2]
[362384672,1748243441665,-151.0,0.00017449,2]
[362384673,1748243441675,-151.0,0.00017449,2]
[362384675,1748243441684,-151.0,0.0001745,2]
[362384677,1748243441694,-163.995928,0.0001745,2]
[362384679,1748243441703,-151.0,0.0001745,2]
[362384681,1748243441713,-151.0,0.0001745,2]
[362384682,1748243441723,-301.368298,0.0001745,2]
[362384684,1748243441732,-295.809937,0.00017451,2]
[362384686,1748243441742,-198.0,0.00017474,2]
[362384688,1748243441752,-151.0,0.00017474,2]
[362384690,1748243441761,-151.0,0.00017474,2]
[362384692,1748243441770,-151.0,0.00017474,2]
[362384694,1748243441780,-501.48568543,0.00017474,2]
[362384696,1748243441790,-151.0,0.00017474,2]
[362384698,1748243441799,-349.65206438,0.00017474,2]
[362384699,1748243441810,-151.0,0.00017474,2]
[362384701,1748243441819,-221.87044723,0.00017474,2]
[362384703,1748243441829,-151.0,0.00017502,2]
[362384705,1748243441838,-151.0,0.00017502,2]
[362384707,1748243441848,-151.0,0.00017502,2]
[362384709,1748243441858,-198.0,0.00017502,2]
[362384711,1748243441868,-151.0,0.00017529,2]
[362384713,1748243441878,-151.0,0.00017529,2]
[362384714,1748243441887,-151.0,0.00017529,2]
[362384716,1748243441898,-245.22747391,0.00017557,2]
[362384718,1748243441910,-246.10380235,0.00017557,2]
[362384720,1748243441920,-151.0,0.00017557,2]
[362384722,1748243441930,-208.48728359,0.00017584,2]
[362384724,1748243441940,-548.93256579,0.000178,2]
[362384726,1748243441950,-5000.0,0.00017801,2]
[362384728,1748243441964,-548.93256578,0.00017825,2]
[362384730,1748243441973,-548.93256578,0.0001785,2]
[362384732,1748243441983,-548.93256578,0.00017875,2]
[362384733,1748243441993,-151.0,0.000179,2]
[362384735,1748243442003,-151.0,0.000179,2]
[362384737,1748243442013,-548.93256578,0.000179,2]
[362384739,1748243442022,-1064.76687102,0.000179,2]
[362384741,1748243442032,-5078.09648842,0.00017988,2]
[362385043,1748243446692,-2670.11888203,0.00017988,2]
[362385045,1748243446724,-7793.79313836,0.00017988,2]
[362385047,1748243446736,-4018.09132644,0.00017988,2]
[362385049,1748243446746,-369.37,0.0001799,3]
[362385051,1748243446756,-184.68,0.0001799,3]
[362385053,1748243446766,-554.07,0.0001799,3]
[362385055,1748243446776,-755.95,0.0001799,3]
[362385056,1748243446786,-151.0,0.00017998,2]
[362385058,1748243446795,-151.0,0.00017998,2]
[362385059,1748243446805,-151.0,0.00017998,2]
[362385060,1748243446815,-152.87708,0.00017998,2]
[362385061,1748243446824,-277.89767003,0.00017998,2]
[362385062,1748243446834,-152.15525215,0.00017998,2]
[362385063,1748243446844,-151.0,0.00017998,2]
[362385064,1748243446853,-152.22870718,0.00017998,2]
[362385065,1748243446864,-153.66920332,0.00017998,2]
[362385066,1748243446873,-152.04477572,0.00017998,2]
[362385067,1748243446883,-151.32249014,0.00017998,2]
[362385068,1748243446892,-151.39454595,0.00017998,2]
[362385069,1748243446902,-160.0,0.00017999,2]
[362385070,1748243447025,-910.24894625,0.00018,2]
[362385073,1748243627617,223.999999,0.00013699,2]
[362385239,1748244064915,200.0,0.00021917,30]
[362386021,1748244368954,10000.0,0.00021918,30]
[362386022,1748244399278,2641.79,0.00021918,30]
[362386023,1748244417315,1112.0,0.0002191,120]
[362386027,1748244455130,153.0,0.00013365,2]
[362386028,1748244455577,204.0,0.00013946,2]
[362386674,1748244639013,-178.03,0.00014178,2]
[362386676,1748244639024,-222.54,0.00014768,2]
[362386678,1748244639035,-267.05,0.00015359,2]
[362386680,1748244639045,-311.56,0.0001595,2]
[362386682,1748244639055,-300.0,0.00016395,2]
[362386685,1748244639066,-1480.05893936,0.00016396,2]
[362386863,1748244730275,2072.12,0.00012406,2]
[362386864,1748244730701,4144.24,0.00012996,2]
[362386865,1748244731111,2773.51814976,0.00013587,2]
[362386866,1748244731136,3442.84185024,0.00013587,2]
[362386867,1748244741954,-8288.48,0.00014178,2]
[362386868,1748244741980,-10360.6,0.00014769,2]
[362386869,1748244742004,-3369.92,0.00015359,2]
[362386870,1748244761026,220.906914,0.00013699,2]
[362386872,1748244800415,1445.72,0.00012365,2]
[362386873,1748244800816,2891.45,0.00012953,2]
[362386874,1748244801237,4337.17,0.00013542,2]
[362386875,1748244808068,-3811.0,0.00014131,2]
[362386877,1748244873118,1260.16,0.00012356,2]
[362386878,1748244873523,2520.33,0.00012945,2]
[362386879,1748244873953,1144.75456909,0.00013533,2]
[362386880,1748244873978,2635.73543091,0.00013533,2]
[362386881,1748244937298,-5000.0,0.00014122,2]
[362386882,1748244942509,5000.0,0.00014,2]
[362386883,1748244945197,1031.78,0.00012354,2]
[362386884,1748244945639,2063.57,0.00012943,2]
[362386885,1748244946061,3095.35,0.00013531,2]
[362386886,1748245002763,-3725.0,0.00014119,2]
[362386887,1748245017279,851.5,0.00012347,2]
[362386888,1748245017715,1703.0,0.00012935,2]
[362386889,1748245018126,882.39790242,0.00013523,2]
[362386890,1748245018151,1672.09209758,0.00013523,2]
[362386891,1748245088618,758.61,0.00012346,2]
[362386892,1748245089040,1517.21,0.00012934,2]
[362386893,1748245089475,2275.82,0.00013522,2]
[362386894,1748245159837,675.85,0.00012196,2]
[362386895,1748245160273,1351.7,0.00012776,2]
[362386896,1748245160691,2027.55,0.00013357,2]
[362386897,1748245161109,2703.4,0.00013938,2]
[362387340,1748245233474,552.97,0.00012194,2]
[362387341,1748245233808,1105.94,0.00012775,2]
[362387342,1748245234262,1658.91,0.00013356,2]
[362387343,1748245234676,963.28123575,0.00013936,2]
[362387344,1748245234703,1248.58876425,0.00013936,2]
[362388154,1748245305009,452.43,0.00012194,2]
[362388164,1748245305447,904.86,0.00012775,2]
[362388171,1748245305859,1357.29,0.00013355,2]
[362388181,1748245306293,1809.71,0.00013936,2]
[362388553,1748245376447,370.17,0.00012195,2]
[362388555,1748245377400,740.34,0.00012776,2]
[362388558,1748245378380,1110.51,0.00013357,2]
[362388560,1748245378795,1480.68,0.00013937,2]
[362388588,1748245449140,302.87,0.00012198,2]
[362388592,1748245449708,605.73,0.00012779,2]
[362388593,1748245450132,908.6,0.0001336,2]
[362388595,1748245450555,1211.46,0.00013941,2]
[362388598,1748245460634,-1514.33,0.00014522,2]
[362388600,1748245460663,-153.30079669,0.0001462,2]
[362388601,1748245460685,-300.0,0.0001471,2]
[362388602,1748245460708,-300.0,0.0001471,2]
[362388603,1748245460729,-300.0,0.0001471,2]
[362388604,1748245460750,-300.0,0.0001471,2]
[362388605,1748245460772,-5901.73,0.00014711,2]
[362388606,1748245460795,-403.1587557,0.00014739,2]
[362388607,1748245460820,-19348.936549,0.00014778,2]
[362388608,1748245460847,-1817.19,0.00015102,2]
[362388609,1748245461002,-2120.06,0.00015683,2]
[362388610,1748245461025,-1508.70979712,0.00015871,2]
[362388611,1748245461049,-500.0,0.00015871,2]
[362388612,1748245461073,-500.0,0.00015871,2]
[362388613,1748245461096,-500.0,0.00015871,2]
[362388614,1748245461120,-340.63567813,0.00015871,2]
[362388615,1748245461147,-500.0,0.00015871,2]
[362388616,1748245461175,-500.0,0.00015871,2]
[362388617,1748245461225,-500.0,0.00015871,2]
[362388618,1748245461257,-500.0,0.00015871,2]
[362388619,1748245461283,-500.0,0.00015871,2]
[362388620,1748245461310,-500.0,0.00015871,2]
[362388621,1748245461335,-500.0,0.00015871,2]
[362388622,1748245461362,-500.0,0.00015871,2]
[362388623,1748245461385,-421.40036424,0.00015871,2]
[362388624,1748245461411,-500.0,0.00015871,2]
[362388625,1748245461437,-500.0,0.00015871,2]
[362388626,1748245461462,-500.0,0.00015871,2]
[362388627,1748245461488,-486.54805912,0.00015871,2]
[362388689,1748245521074,150.0,0.00012208,2]
[362388690,1748245521491,297.36,0.0001279,2]
[362388691,1748245521902,446.04,0.00013371,2]
[362388692,1748245522325,594.72,0.00013952,2]
[362388706,1748245592231,243.24,0.00012661,2]
[362388707,1748245592627,364.87,0.00013236,2]
[362388708,1748245593057,486.49,0.00013812,2]
[362388751,1748245663780,150.0,0.00012096,2]
[362388753,1748245664197,203.44,0.00012672,2]
[362388755,1748245664642,305.16,0.00013248,2]
[362388757,1748245665070,406.88,0.00013824,2]
[362388828,1748245736326,150.0,0.00012098,2]
[362388829,1748245737321,164.7,0.00012674,2]
[362388830,1748245737748,247.04,0.0001325,2]
[362388831,1748245738153,329.39,0.00013826,2]
[362388832,1748245808143,150.0,0.00012187,2]
[362388833,1748245808567,70.76456908,0.00012767,2]
[362388834,1748245808603,79.23543092,0.00012767,2]
[362388835,1748245809019,198.44,0.00013347,2]
[362388836,1748245809544,264.58,0.00013927,2]
[362388953,1748245835995,209.861568,0.00013699,2]
[362388988,1748245837865,-330.73,0.00014508,2]
[362388990,1748245837875,-181.892686,0.0001481,2]
[362388992,1748245837885,-396.87,0.00015088,2]
[362388994,1748245837896,-463.02,0.00015668,2]
[362388996,1748245837905,-300.0,0.00015798,2]
[362388998,1748245837915,-324.60004047,0.00015799,2]
[362389000,1748245837924,-204.51507535,0.00015799,2]
[362389002,1748245837934,-500.0,0.00015799,2]
[362389004,1748245837943,-500.0,0.00015799,2]
[362389006,1748245837953,-500.0,0.00015799,2]
[362389008,1748245837963,-500.0,0.00015799,2]
[362389010,1748245837973,-372.11404881,0.00015799,2]
[362389012,1748245837983,-500.0,0.00015799,2]
[362389014,1748245837992,-12742.44015128,0.000158,2]
[362389017,1748245838013,-16636.46636173,0.000158,2]
[362389019,1748245838023,-156.99085314,0.00015843,2]
[362389021,1748245838033,-594.338144,0.00016106,2]
[362389023,1748245838042,-529.17,0.00016249,2]
[362389026,1748245838052,-14076.53287044,0.00016396,2]
[362389030,1748245838063,-151.0,0.00016485,2]
[362389034,1748245838073,-258.274604,0.00016485,2]
[362389036,1748245838082,-155.908833,0.00016486,2]
[362389039,1748245838092,-3478.0264172,0.00016522,2]
[362389042,1748245838101,-859.22175022,0.00016776,2]
[362389045,1748245838112,-500.0,0.00016794,2]
[362389048,1748245838121,-500.0,0.00016794,2]
[362389051,1748245838131,-500.0,0.00016794,2]
[362389054,1748245838140,-311.8102435,0.00016794,2]
[362389057,1748245838150,-500.0,0.00016794,2]
[362389060,1748245838159,-638.07333081,0.00016794,2]
[362389063,1748245838168,-571.7598589,0.00016795,2]
[362389066,1748245838177,-176.2486289,0.00016795,2]
[362389069,1748245838187,-153.0,0.00016795,2]
[362389072,1748245838196,-158.3064961,0.00016795,2]
[362389075,1748245838208,-158.3064961,0.00016795,2]
[362389078,1748245838217,-571.7598589,0.00016795,2]
[362389081,1748245838226,-176.2486289,0.00016795,2]
[362389084,1748245838236,-153.0,0.00016795,2]
[362389087,1748245838245,-158.3064961,0.00016795,2]
[362389090,1748245838255,-571.7598589,0.00016795,2]
[362389094,1748245838266,-153.0,0.00016795,2]
[362389097,1748245838276,-176.2486289,0.00016795,2]
[362389101,1748245838288,-158.3064961,0.00016795,2]
[362389104,1748245838298,-571.7598589,0.00016795,2]
[362389107,1748245838308,-153.0,0.00016795,2]
[362389109,1748245838318,-176.2486289,0.00016795,2]
[362389111,1748245838328,-158.3064961,0.00016795,2]
[362389113,1748245838337,-176.2486289,0.00016795,2]
[362389115,1748245838346,-571.7598589,0.00016795,2]
[362389117,1748245838357,-158.3064961,0.00016795,2]
[362389119,1748245838368,-176.2486289,0.00016795,2]
[362389121,1748245838377,-571.7598589,0.00016795,2]
[362389123,1748245838386,-571.7598589,0.00016795,2]
[362389125,1748245838396,-176.2486289,0.00016795,2]
[362389127,1748245838405,-176.2486289,0.00016795,2]
[362389129,1748245838414,-571.7598589,0.00016795,2]
[362389131,1748245838424,-500.0,0.000168,2]
[362389133,1748245838433,-500.0,0.000168,2]
[362389135,1748245838443,-500.0,0.000168,2]
[362389137,1748245838453,-500.0,0.000168,2]
[362389140,1748245838474,-500.0,0.000168,2]
[362389142,1748245838485,-500.0,0.000168,2]
[362389145,1748245838496,-500.0,0.000168,2]
[362389147,1748245838506,-500.0,0.000168,2]
[362389149,1748245838518,-500.0,0.000168,2]
[362389151,1748245838531,-500.0,0.000168,2]
[362389153,1748245838542,-595.31,0.00016829,2]
[362389155,1748245838551,-1112.61515003,0.000169,2]
[362389157,1748245838561,-151.0,0.00017051,2]
[362389159,1748245838571,-316.0,0.0001709,2]
[362389161,1748245838580,-316.0,0.0001709,2]
[362389163,1748245838590,-316.0,0.0001709,2]
[362389165,1748245838599,-316.0,0.0001709,2]
[362389167,1748245838610,-316.0,0.0001709,2]
[362389169,1748245838620,-1112.61514983,0.00017176,2]
[362389171,1748245838630,-158.3064961,0.00017178,2]
[362389173,1748245838639,-176.2486289,0.00017178,2]
[362389175,1748245838650,-213.1056646,0.00017178,2]
[362389177,1748245838660,-190.8638777,0.00017178,2]
[362389179,1748245838671,-153.837491,0.00017178,2]
[362389180,1748245838680,-571.7598589,0.00017178,2]
[362389181,1748245838691,-420.0,0.00017276,2]
[362389182,1748245838701,-502.53897078,0.00017348,2]
[362389183,1748245838712,-1000.0,0.00017348,2]
[362389184,1748245838721,-1000.0,0.00017348,2]
[362389185,1748245838731,-1000.0,0.00017348,2]
[362389186,1748245838740,-263.05996058,0.00017348,2]
[362389187,1748245838750,-1000.0,0.00017348,2]
[362389188,1748245838759,-1002.6699559,0.00017348,2]
[362389189,1748245838768,-501.62287544,0.00017348,2]
[362389190,1748245838778,-418.93760681,0.00017348,2]
[362389191,1748245838787,-219.73120777,0.00017398,2]
[362389192,1748245838796,-559.89164061,0.00017409,2]
[362389193,1748245838807,-1112.61514983,0.00017452,2]
[362389194,1748245838819,-151.0,0.00017616,2]
[362389195,1748245838829,-176.2486289,0.00017616,2]
[362389196,1748245838839,-546.6732634,0.00017616,2]
[362389197,1748245838849,-188.2300854,0.00017616,2]
[362389198,1748245838859,-733.39162,0.0001764,2]
[362389199,1748245838869,-1112.61514983,0.00017728,2]
[362389200,1748245838878,-151.0,0.00017728,2]
[362389201,1748245838889,-1527.40435118,0.00017873,2]
[362389203,1748245838900,-1527.40435114,0.0001788,2]
[362389204,1748245838910,-1527.40435114,0.00017887,2]
[362389206,1748245838919,-1527.40435114,0.00017893,2]
[362389208,1748245838929,-1505.44720968,0.00017896,2]
[362389210,1748245838938,-681.39640225,0.00017896,2]
[362389212,1748245838948,-1500.0,0.00017896,2]
[362389214,1748245838957,-1500.0,0.00017896,2]
[362389216,1748245838967,-382.57453639,0.000179,2]
[362389218,1748245838978,-151.0,0.000179,2]
[362389220,1748245838988,-1527.40435114,0.000179,2]
[362389222,1748245838999,-166.21305775,0.00017973,2]
[362389224,1748245839008,-500.0,0.00017973,2]
[362389226,1748245839018,-158.05005151,0.00017973,2]
[362389228,1748245839028,-184.68,0.0001799,3]
[362389230,1748245839037,-554.06,0.0001799,3]
[362389232,1748245839048,-151.0,0.00017998,2]
[362389234,1748245839058,-160.0,0.00017999,2]
[362389236,1748245839068,-10037.52532303,0.00018,2]
[362389239,1748245839089,-387.43794976,0.00018,2]
[362389241,1748245839099,-1385.06621659,0.00018,3]
[362389243,1748245839110,-132627.79549095,0.00018,2]
[362389605,1748245843003,-95417.598441,0.00018,2]
[362389608,1748245843016,-129549.89220274,0.00018,2]
[362389610,1748245843027,-152.423,0.00018,2]
[362389612,1748245843037,-151.0,0.00018,2]
[362389614,1748245843047,-151.0,0.00018,2]
[362389616,1748245843057,-1112.61514983,0.00018003,2]
[362389617,1748245843068,-151.0,0.00018025,2]
[362389619,1748245843077,-151.0,0.00018053,2]
[362389621,1748245843087,-246.43046613,0.0001808,2]
[362389623,1748245843096,-5299.8334842,0.00018082,2]
[362389625,1748245843106,-4666.59646971,0.00018111,2]
[362389627,1748245843115,-17314.71479523,0.00018149,2]
[362389629,1748245843124,-151.0,0.00018149,2]
[362389631,1748245843133,-151.0,0.00018149,2]
[362389633,1748245843142,-961.0,0.00018221,2]
[362389634,1748245843151,-707.0,0.00018221,2]
[362389636,1748245843160,-2204.0,0.00018221,2]
[362389638,1748245843169,-150.0,0.00018221,2]
[362389640,1748245843178,-150.0,0.00018221,2]
[362389642,1748245843187,-150.0,0.00018221,2]
[362389644,1748245843197,-1262.485,0.00018221,2]
[362389646,1748245843206,-1112.61514983,0.00018279,2]
[362389648,1748245843216,-500.0,0.00018444,2]
[362389650,1748245843225,-2000.0,0.00018444,2]
[362389651,1748245843234,-500.0,0.00018521,2]
[362389653,1748245843243,-1112.61514983,0.00018555,2]
[362389655,1748245843252,-1112.61514983,0.00018831,2]
[362389657,1748245843262,-587.0,0.00018892,2]
[362389659,1748245843271,-370.17682653,0.000189,2]
[362389661,1748245843280,-500.0,0.00018973,2]
[362389663,1748245843289,-376.43417452,0.00018973,2]
[362389664,1748245843298,-2500.0,0.00018992,2]
[362389666,1748245843308,-3920.93475834,0.00019,2]
[362389668,1748245843318,-203333.56108,0.00019,2]
[362389670,1748245843327,-151.0,0.00019,2]
[362389672,1748245843337,-151.0,0.00019,2]
[362389674,1748245843346,-151.0,0.00019,2]
[362389676,1748245843356,-151.0,0.00019,2]
[362389678,1748245843365,-1112.61514983,0.00019107,2]
[362389680,1748245843374,-151.0,0.00019178,2]
[362389682,1748245843384,-151.0,0.00019178,2]
[362389684,1748245843394,-151.0,0.00019178,2]
[362389686,1748245843403,-162.157873,0.00019178,2]
[362389687,1748245843413,-430.0,0.00019178,2]
[362389688,1748245843422,-338.36229431,0.00019178,2]
[362389689,1748245843432,-260.0,0.00019178,2]
[362389690,1748245843441,-430.0,0.00019178,2]
[362389691,1748245843451,-156.50310981,0.00019178,2]
[362389692,1748245843460,-430.0,0.00019178,2]
[362389693,1748245843469,-477.13909201,0.00019178,2]